[Event "Titled Tuesday Blitz June 27 Late 2023"]
[White "Veiga, Jose Francisco R P Neves"]
[Black "Czerw, Dawid"]
[WhiteFideId "1930087"]
[BlackFideId "1145746"]
[WhiteElo "2669"]
[BlackElo "2501"]
[Result "0-1"]
[Round "6"]
[TimeControl "180+2"]
[Date "2023.06.27"]
[WhiteClock "0:00:00"]
[BlackClock "0:00:10"]
[Board "79"]

1. c4 {[%clk 0:03:00]}  c6 {[%clk 0:02:59]} 2. Nc3 {[%clk 0:02:59]}  d5 {[%clk 0:02:59]} 3. d4 {[%clk 0:03:00]}  Nf6 {[%clk 0:02:59]} 4. Nf3 {[%clk 0:03:00]}  a6 {[%clk 0:02:59]} 5. c5 {[%clk 0:03:00]}  b6 {[%clk 0:02:57]} 6. cxb6 {[%clk 0:03:01]}  Qxb6 {[%clk 0:02:57]} 7. Na4 {[%clk 0:02:54]}  Qc7 {[%clk 0:02:54]} 8. g3 {[%clk 0:02:52]}  e6 {[%clk 0:02:52]} 9. Bf4 {[%clk 0:02:52]}  Bd6 {[%clk 0:02:52]} 10. Bxd6 {[%clk 0:02:52]}  Qxd6 {[%clk 0:02:52]} 11. Bg2 {[%clk 0:02:51]}  Qb4+ {[%clk 0:02:51]} 12. Kf1 {[%clk 0:02:50]}  Nbd7 {[%clk 0:02:46]} 13. a3 {[%clk 0:02:48]}  Qb5 {[%clk 0:02:41]} 14. Rc1 {[%clk 0:02:47]}  O-O {[%clk 0:02:37]} 15. h3 {[%clk 0:02:34]}  a5 {[%clk 0:02:37]} 16. Kg1 {[%clk 0:02:32]}  Ba6 {[%clk 0:02:37]} 17. Bf1 {[%clk 0:02:28]}  Qb7 {[%clk 0:02:20]} 18. Kg2 {[%clk 0:02:26]}  Bb5 {[%clk 0:02:20]} 19. Nc3 {[%clk 0:02:22]}  Bc4 {[%clk 0:02:19]} 20. Qd2 {[%clk 0:02:19]}  Rfb8 {[%clk 0:02:17]} 21. Rc2 {[%clk 0:02:12]}  c5 {[%clk 0:02:16]} 22. e3 {[%clk 0:02:11]}  cxd4 {[%clk 0:02:01]} 23. Qxd4 {[%clk 0:02:05]}  Bxf1+ {[%clk 0:01:50]} 24. Rxf1 {[%clk 0:02:06]}  e5 {[%clk 0:01:50]} 25. Qd1 {[%clk 0:01:50]}  e4 {[%clk 0:01:44]} 26. Nd4 {[%clk 0:01:48]}  Ne5 {[%clk 0:01:44]} 27. Qe2 {[%clk 0:01:38]}  h5 {[%clk 0:01:28]} 28. Rd1 {[%clk 0:01:35]}  h4 {[%clk 0:01:22]} 29. g4 {[%clk 0:01:34]}  g6 {[%clk 0:01:17]} 30. g5 {[%clk 0:01:31]}  Nh7 {[%clk 0:01:09]} 31. Ndb5 {[%clk 0:01:30]}  Nxg5 {[%clk 0:00:59]} 32. Rxd5 {[%clk 0:01:28]}  Nef3 {[%clk 0:00:49]} 33. Nd6 {[%clk 0:01:13]}  Qd7 {[%clk 0:00:43]} 34. Nf5 {[%clk 0:01:03]}  Qe6 {[%clk 0:00:41]} 35. Nh6+ {[%clk 0:00:58]}  Kg7 {[%clk 0:00:37]} 36. Ng4 {[%clk 0:00:59]}  f5 {[%clk 0:00:18]} 37. Nh2 {[%clk 0:00:23]}  Rf8 {[%clk 0:00:18]} 38. Qd1 {[%clk 0:00:17]}  Ra7 {[%clk 0:00:17]} 39. Nxf3 {[%clk 0:00:14]}  Nxf3 {[%clk 0:00:16]} 40. Ne2 {[%clk 0:00:11]}  Qf6 {[%clk 0:00:15]} 41. Nf4 {[%clk 0:00:11]}  Qg5+ {[%clk 0:00:16]} 42. Kf1 {[%clk 0:00:11]}  Qg1+ {[%clk 0:00:12]} 43. Ke2 {[%clk 0:00:11]}  Qh2 {[%clk 0:00:13]} 44. Rd7+ {[%clk 0:00:10]}  Rxd7 {[%clk 0:00:12]} 45. Qxd7+ {[%clk 0:00:11]}  Kh6 {[%clk 0:00:12]} 46. Ne6 {[%clk 0:00:10]}  Rg8 {[%clk 0:00:10]} 47. Qf7 {[%clk 0:00:07]}  Ng1+ {[%clk 0:00:10]} 48. Ke1 {[%clk 0:00:06]}  Nf3+ {[%clk 0:00:11]} 49. Ke2 {[%clk 0:00:07]}  Qg1 {[%clk 0:00:10]} 50. Rc1 {[%clk 0:00:00]}  Qxc1 {[%clk 0:00:10]} 0-1


[Site "https://www.chess.com"]

[Event "Titled Tuesday Blitz June 27 Late 2023"]
[White "Goryachkina, Aleksandra"]
[Black "Yeritsyan, Hayk"]
[WhiteFideId "4147103"]
[BlackFideId "13307320"]
[WhiteElo "2658"]
[BlackElo "2497"]
[Result "1-0"]
[Round "6"]
[TimeControl "180+2"]
[Date "2023.06.27"]
[WhiteClock "0:00:44"]
[BlackClock "0:00:00"]
[Board "80"]

1. e4 {[%clk 0:03:00]}  c6 {[%clk 0:02:57]} 2. d4 {[%clk 0:02:58]}  d5 {[%clk 0:02:55]} 3. exd5 {[%clk 0:02:59]}  cxd5 {[%clk 0:02:56]} 4. Bd3 {[%clk 0:02:59]}  Nf6 {[%clk 0:02:56]} 5. h3 {[%clk 0:02:59]}  Bd7 {[%clk 0:02:52]} 6. Nf3 {[%clk 0:02:56]}  Nc6 {[%clk 0:02:50]} 7. O-O {[%clk 0:02:55]}  Nb4 {[%clk 0:02:41]} 8. Be2 {[%clk 0:02:50]}  Bf5 {[%clk 0:02:40]} 9. Na3 {[%clk 0:02:48]}  e6 {[%clk 0:02:32]} 10. Bb5+ {[%clk 0:02:43]}  Nc6 {[%clk 0:02:31]} 11. Ne5 {[%clk 0:02:41]}  Qb6 {[%clk 0:02:29]} 12. c4 {[%clk 0:02:34]}  Bxa3 {[%clk 0:02:17]} 13. bxa3 {[%clk 0:02:31]}  O-O {[%clk 0:02:18]} 14. Bg5 {[%clk 0:02:16]}  dxc4 {[%clk 0:01:44]} 15. Bxc6 {[%clk 0:02:03]}  bxc6 {[%clk 0:01:39]} 16. Bxf6 {[%clk 0:02:03]}  gxf6 {[%clk 0:01:38]} 17. Nd7 {[%clk 0:02:04]}  Qb5 {[%clk 0:01:31]} 18. a4 {[%clk 0:01:49]}  Qa5 {[%clk 0:00:59]} 19. Qh5 {[%clk 0:01:40]}  Qc7 {[%clk 0:00:18]} 20. Nxf8 {[%clk 0:01:29]}  Rxf8 {[%clk 0:00:17]} 21. Rac1 {[%clk 0:01:29]}  Rd8 {[%clk 0:00:13]} 22. Qh4 {[%clk 0:01:25]}  Bd3 {[%clk 0:00:10]} 23. Rfe1 {[%clk 0:01:25]}  f5 {[%clk 0:00:04]} 24. Re3 {[%clk 0:01:19]}  Kf8 {[%clk 0:00:02]} 25. Qxh7 {[%clk 0:01:13]}  Ke7 {[%clk 0:00:03]} 26. Qh4+ {[%clk 0:01:12]}  Kd7 {[%clk 0:00:03]} 27. Qf6 {[%clk 0:01:07]}  Rf8 {[%clk 0:00:03]} 28. Rxe6 {[%clk 0:01:03]}  fxe6 {[%clk 0:00:01]} 29. Qxf8 {[%clk 0:01:03]}  Qd6 {[%clk 0:00:02]} 30. Qg7+ {[%clk 0:01:03]}  Qe7 {[%clk 0:00:01]} 31. Qh8 {[%clk 0:01:01]}  Qd6 {[%clk 0:00:01]} 32. a5 {[%clk 0:00:57]}  Qe7 {[%clk 0:00:02]} 33. a6 {[%clk 0:00:56]}  Qd6 {[%clk 0:00:02]} 34. Qa8 {[%clk 0:00:55]}  Qc7 {[%clk 0:00:02]} 35. h4 {[%clk 0:00:50]}  Kd6 {[%clk 0:00:02]} 36. h5 {[%clk 0:00:50]}  Qg7 {[%clk 0:00:02]} 37. Qd8+ {[%clk 0:00:45]}  Qd7 {[%clk 0:00:01]} 38. Qxd7+ {[%clk 0:00:45]}  Kxd7 {[%clk 0:00:01]} 39. h6 {[%clk 0:00:45]}  f4 {[%clk 0:00:00]} 40. Rxc4 {[%clk 0:00:44]} 1-0


[Site "https://www.chess.com"]

[Event "Titled Tuesday Blitz June 27 Late 2023"]
[White "Remolar Gallen, Jose"]
[Black "Vaibhav Jayant Raut"]
[WhiteFideId "2215187"]
[BlackFideId "5089034"]
[WhiteElo "2457"]
[BlackElo "2622"]
[Result "0-1"]
[Round "6"]
[TimeControl "180+2"]
[Date "2023.06.27"]
[WhiteClock "0:00:00"]
[BlackClock "0:00:13"]
[Board "83"]

1. e4 {[%clk 0:03:00]}  c5 {[%clk 0:02:55]} 2. Nf3 {[%clk 0:03:00]}  e6 {[%clk 0:02:55]} 3. d4 {[%clk 0:03:00]}  cxd4 {[%clk 0:02:55]} 4. Nxd4 {[%clk 0:03:00]}  a6 {[%clk 0:02:56]} 5. Nc3 {[%clk 0:03:00]}  Qc7 {[%clk 0:02:55]} 6. Bd3 {[%clk 0:02:59]}  Nf6 {[%clk 0:02:55]} 7. O-O {[%clk 0:02:59]}  Be7 {[%clk 0:02:56]} 8. Qe2 {[%clk 0:02:53]}  d6 {[%clk 0:02:56]} 9. Bg5 {[%clk 0:02:36]}  Nbd7 {[%clk 0:02:55]} 10. a4 {[%clk 0:02:28]}  b6 {[%clk 0:02:54]} 11. Bc4 {[%clk 0:02:23]}  Ne5 {[%clk 0:02:51]} 12. Bb3 {[%clk 0:02:21]}  h6 {[%clk 0:02:50]} 13. Bh4 {[%clk 0:02:16]}  g5 {[%clk 0:02:49]} 14. Bg3 {[%clk 0:02:16]}  Bb7 {[%clk 0:02:48]} 15. Rad1 {[%clk 0:01:49]}  h5 {[%clk 0:02:43]} 16. f4 {[%clk 0:01:36]}  gxf4 {[%clk 0:02:24]} 17. Bxf4 {[%clk 0:01:33]}  Rg8 {[%clk 0:02:22]} 18. Kh1 {[%clk 0:01:29]}  h4 {[%clk 0:02:15]} 19. Nxe6 {[%clk 0:00:52]}  fxe6 {[%clk 0:02:13]} 20. Bxe6 {[%clk 0:00:53]}  Rh8 {[%clk 0:02:08]} 21. Bxe5 {[%clk 0:00:35]}  dxe5 {[%clk 0:02:06]} 22. Rxf6 {[%clk 0:00:34]}  Bxf6 {[%clk 0:02:04]} 23. Rd7 {[%clk 0:00:28]}  Qxd7 {[%clk 0:01:47]} 24. Bxd7+ {[%clk 0:00:29]}  Kxd7 {[%clk 0:01:48]} 25. a5 {[%clk 0:00:23]}  b5 {[%clk 0:01:46]} 26. Qg4+ {[%clk 0:00:23]}  Kc7 {[%clk 0:01:35]} 27. Qe6 {[%clk 0:00:22]}  Raf8 {[%clk 0:01:35]} 28. Qb6+ {[%clk 0:00:20]}  Kc8 {[%clk 0:01:32]} 29. Nd5 {[%clk 0:00:08]}  Bd8 {[%clk 0:01:21]} 30. Qc5+ {[%clk 0:00:06]}  Kd7 {[%clk 0:01:19]} 31. h3 {[%clk 0:00:05]}  Bxa5 {[%clk 0:01:08]} 32. c4 {[%clk 0:00:05]}  Rf7 {[%clk 0:00:45]} 33. b4 {[%clk 0:00:04]}  Rc8 {[%clk 0:00:44]} 34. Qa7 {[%clk 0:00:04]}  Ke8 {[%clk 0:00:28]} 35. bxa5 {[%clk 0:00:02]}  Bxd5 {[%clk 0:00:29]} 36. Qxa6 {[%clk 0:00:02]}  Bb7 {[%clk 0:00:24]} 37. Qxb5+ {[%clk 0:00:03]}  Bc6 {[%clk 0:00:23]} 38. Qxe5+ {[%clk 0:00:03]}  Kd7 {[%clk 0:00:24]} 39. Qg5 {[%clk 0:00:02]}  Bxe4 {[%clk 0:00:20]} 40. Qg4+ {[%clk 0:00:02]}  Bf5 {[%clk 0:00:20]} 41. Qxh4 {[%clk 0:00:03]}  Rg8 {[%clk 0:00:19]} 42. Qd4+ {[%clk 0:00:03]}  Ke6 {[%clk 0:00:19]} 43. Qd5+ {[%clk 0:00:03]}  Kf6 {[%clk 0:00:19]} 44. Qd6+ {[%clk 0:00:03]}  Kg7 {[%clk 0:00:18]} 45. Qe5+ {[%clk 0:00:03]}  Kg6 {[%clk 0:00:17]} 46. g4 {[%clk 0:00:04]}  Bd7 {[%clk 0:00:16]} 47. Qd6+ {[%clk 0:00:04]}  Kg7 {[%clk 0:00:16]} 48. Qe5+ {[%clk 0:00:05]}  Kh7 {[%clk 0:00:16]} 49. Qe4+ {[%clk 0:00:04]}  Kg7 {[%clk 0:00:16]} 50. Qd4+ {[%clk 0:00:05]}  Kh6 {[%clk 0:00:13]} 51. Qd6+ {[%clk 0:00:05]}  Rg6 {[%clk 0:00:13]} 52. Qd2+ {[%clk 0:00:04]}  Kh7 {[%clk 0:00:14]} 53. Qd5 {[%clk 0:00:00]}  Bc6 {[%clk 0:00:13]} 0-1


[Site "https://www.chess.com"]

[Event "Titled Tuesday Blitz June 27 Late 2023"]
[White "Bitoon, Richard"]
[Black "Kisic, Bozidar"]
[WhiteFideId "5201110"]
[BlackFideId "16500350"]
[WhiteElo "2579"]
[BlackElo "2456"]
[Result "1-0"]
[Round "6"]
[TimeControl "180+2"]
[Date "2023.06.27"]
[WhiteClock "0:00:27"]
[BlackClock "0:00:00"]
[Board "84"]

1. e4 {[%clk 0:03:00]}  g6 {[%clk 0:02:59]} 2. d4 {[%clk 0:03:00]}  Bg7 {[%clk 0:03:00]} 3. Nc3 {[%clk 0:03:01]}  d6 {[%clk 0:03:00]} 4. Bc4 {[%clk 0:03:01]}  a6 {[%clk 0:03:00]} 5. a4 {[%clk 0:02:57]}  b6 {[%clk 0:03:01]} 6. h4 {[%clk 0:02:52]}  h6 {[%clk 0:03:00]} 7. Nf3 {[%clk 0:02:48]}  e6 {[%clk 0:02:58]} 8. h5 {[%clk 0:02:47]}  g5 {[%clk 0:02:58]} 9. Qe2 {[%clk 0:02:43]}  Bb7 {[%clk 0:02:58]} 10. Bd2 {[%clk 0:02:41]}  Nd7 {[%clk 0:02:57]} 11. Ba2 {[%clk 0:02:37]}  Ne7 {[%clk 0:02:57]} 12. O-O-O {[%clk 0:02:31]}  Nf6 {[%clk 0:02:55]} 13. e5 {[%clk 0:02:31]}  Nfd5 {[%clk 0:02:55]} 14. Ne4 {[%clk 0:02:30]}  Qd7 {[%clk 0:02:48]} 15. c4 {[%clk 0:02:24]}  Qxa4 {[%clk 0:02:48]} 16. Bb1 {[%clk 0:02:15]}  Nf4 {[%clk 0:02:09]} 17. Bxf4 {[%clk 0:02:13]}  gxf4 {[%clk 0:02:10]} 18. exd6 {[%clk 0:02:13]}  Nf5 {[%clk 0:01:55]} 19. dxc7 {[%clk 0:02:09]}  Rc8 {[%clk 0:01:55]} 20. Nc3 {[%clk 0:01:48]}  Qa5 {[%clk 0:01:51]} 21. d5 {[%clk 0:01:39]}  O-O {[%clk 0:01:38]} 22. Bxf5 {[%clk 0:01:35]}  exf5 {[%clk 0:01:19]} 23. d6 {[%clk 0:01:35]}  Bxc3 {[%clk 0:01:04]} 24. bxc3 {[%clk 0:01:36]}  Be4 {[%clk 0:00:27]} 25. Qb2 {[%clk 0:01:34]}  b5 {[%clk 0:00:22]} 26. d7 {[%clk 0:01:33]}  Qxc7 {[%clk 0:00:22]} 27. dxc8=Q {[%clk 0:01:33]}  Rxc8 {[%clk 0:00:23]} 28. Nd2 {[%clk 0:01:27]}  Bd3 {[%clk 0:00:20]} 29. cxb5 {[%clk 0:01:11]}  axb5 {[%clk 0:00:20]} 30. Nb3 {[%clk 0:01:11]}  Bc4 {[%clk 0:00:20]} 31. Nd4 {[%clk 0:01:09]}  Ra8 {[%clk 0:00:20]} 32. Rhe1 {[%clk 0:01:01]}  Ra2 {[%clk 0:00:11]} 33. Re8+ {[%clk 0:00:56]}  Kh7 {[%clk 0:00:08]} 34. Qb4 {[%clk 0:00:55]}  Qa7 {[%clk 0:00:04]} 35. Qf8 {[%clk 0:00:29]}  Ra1+ {[%clk 0:00:04]} 36. Kd2 {[%clk 0:00:29]}  Qa2+ {[%clk 0:00:05]} 37. Nc2 {[%clk 0:00:26]}  Rxd1+ {[%clk 0:00:00]} 38. Kxd1 {[%clk 0:00:27]} 1-0


[Site "https://www.chess.com"]

[Event "Titled Tuesday Blitz June 27 Late 2023"]
[White "Schuster, Karsten"]
[Black "Nefedov, Sergey"]
[WhiteFideId "4611071"]
[BlackFideId "24113417"]
[WhiteElo "2366"]
[BlackElo "2559"]
[Result "0-1"]
[Round "6"]
[TimeControl "180+2"]
[Date "2023.06.27"]
[WhiteClock "0:00:26"]
[BlackClock "0:00:33"]
[Board "87"]

1. Nf3 {[%clk 0:03:00]}  d5 {[%clk 0:02:58]} 2. d4 {[%clk 0:03:00]}  g6 {[%clk 0:02:57]} 3. Bf4 {[%clk 0:02:56]}  Bg7 {[%clk 0:02:57]} 4. c3 {[%clk 0:02:56]}  Nc6 {[%clk 0:02:55]} 5. h4 {[%clk 0:02:56]}  Bg4 {[%clk 0:02:55]} 6. h5 {[%clk 0:02:53]}  Bxh5 {[%clk 0:02:54]} 7. Rxh5 {[%clk 0:02:52]}  gxh5 {[%clk 0:02:53]} 8. e3 {[%clk 0:02:52]}  Nf6 {[%clk 0:02:48]} 9. Bb5 {[%clk 0:02:50]}  Ne4 {[%clk 0:02:41]} 10. Ne5 {[%clk 0:02:49]}  Bxe5 {[%clk 0:02:18]} 11. Bxe5 {[%clk 0:02:47]}  Rg8 {[%clk 0:02:19]} 12. f3 {[%clk 0:02:29]}  Nd6 {[%clk 0:02:12]} 13. Bxc6+ {[%clk 0:02:19]}  bxc6 {[%clk 0:02:13]} 14. Kf2 {[%clk 0:02:18]}  Rb8 {[%clk 0:02:07]} 15. b3 {[%clk 0:02:17]}  Qd7 {[%clk 0:02:06]} 16. Qh1 {[%clk 0:02:16]}  Qf5 {[%clk 0:02:05]} 17. Nd2 {[%clk 0:02:01]}  f6 {[%clk 0:01:56]} 18. Bxd6 {[%clk 0:01:57]}  cxd6 {[%clk 0:01:56]} 19. Rc1 {[%clk 0:01:56]}  e5 {[%clk 0:01:54]} 20. e4 {[%clk 0:01:53]}  Qg5 {[%clk 0:01:42]} 21. Rd1 {[%clk 0:01:53]}  h4 {[%clk 0:01:35]} 22. Qh3 {[%clk 0:01:45]}  Qg3+ {[%clk 0:01:34]} 23. Qxg3 {[%clk 0:01:45]}  hxg3+ {[%clk 0:01:35]} 24. Ke3 {[%clk 0:01:42]}  Kf7 {[%clk 0:01:18]} 25. Rh1 {[%clk 0:01:42]}  Rg7 {[%clk 0:01:13]} 26. c4 {[%clk 0:01:33]}  Ke6 {[%clk 0:00:57]} 27. exd5+ {[%clk 0:01:19]}  cxd5 {[%clk 0:00:54]} 28. Rh6 {[%clk 0:01:17]}  dxc4 {[%clk 0:00:49]} 29. Nxc4 {[%clk 0:01:05]}  Rc8 {[%clk 0:00:42]} 30. Kd3 {[%clk 0:01:04]}  Rgc7 {[%clk 0:00:39]} 31. dxe5 {[%clk 0:00:52]}  dxe5 {[%clk 0:00:38]} 32. Rh3 {[%clk 0:00:50]}  Rg7 {[%clk 0:00:38]} 33. Rh6 {[%clk 0:00:49]}  Rd8+ {[%clk 0:00:38]} 34. Ke3 {[%clk 0:00:46]}  Rd1 {[%clk 0:00:37]} 35. f4 {[%clk 0:00:41]}  Re1+ {[%clk 0:00:34]} 36. Kd2 {[%clk 0:00:40]}  Rg1 {[%clk 0:00:32]} 37. fxe5 {[%clk 0:00:41]}  Rxg2+ {[%clk 0:00:32]} 38. Ke3 {[%clk 0:00:40]}  Rf2 {[%clk 0:00:33]} 39. exf6 {[%clk 0:00:37]}  Rxf6 {[%clk 0:00:33]} 40. Rh1 {[%clk 0:00:32]}  g2 {[%clk 0:00:33]} 41. Rg1 {[%clk 0:00:26]}  Rf1 {[%clk 0:00:33]} 0-1


[Site "https://www.chess.com"]

[Event "Titled Tuesday Blitz June 27 Late 2023"]
[White "Weishaeutel, Moritz"]
[Black "Hoffmann, Asa"]
[WhiteFideId "12967300"]
[BlackFideId "2001470"]
[WhiteElo "2629"]
[BlackElo "2420"]
[Result "0-1"]
[Round "6"]
[TimeControl "180+2"]
[Date "2023.06.27"]
[WhiteClock "0:00:00"]
[BlackClock "0:00:21"]
[Board "92"]

1. e4 {[%clk 0:03:00]}  d6 {[%clk 0:02:57]} 2. f4 {[%clk 0:02:59]}  Nf6 {[%clk 0:02:56]} 3. Nc3 {[%clk 0:02:59]}  c6 {[%clk 0:02:56]} 4. Nf3 {[%clk 0:02:58]}  d5 {[%clk 0:02:56]} 5. d3 {[%clk 0:02:59]}  dxe4 {[%clk 0:02:55]} 6. dxe4 {[%clk 0:02:59]}  Qxd1+ {[%clk 0:02:54]} 7. Kxd1 {[%clk 0:03:00]}  Bg4 {[%clk 0:02:51]} 8. e5 {[%clk 0:02:55]}  Bxf3+ {[%clk 0:02:46]} 9. gxf3 {[%clk 0:02:55]}  Nd5 {[%clk 0:02:46]} 10. Ne4 {[%clk 0:02:52]}  e6 {[%clk 0:02:44]} 11. c4 {[%clk 0:02:52]}  Nb6 {[%clk 0:02:39]} 12. Be3 {[%clk 0:02:51]}  N8d7 {[%clk 0:02:38]} 13. Kc2 {[%clk 0:02:49]}  Be7 {[%clk 0:02:36]} 14. Rd1 {[%clk 0:02:47]}  O-O-O {[%clk 0:02:34]} 15. b3 {[%clk 0:02:27]}  g6 {[%clk 0:02:32]} 16. a4 {[%clk 0:02:11]}  Kb8 {[%clk 0:02:22]} 17. Be2 {[%clk 0:02:04]}  Nc8 {[%clk 0:02:19]} 18. Rd2 {[%clk 0:01:58]}  b6 {[%clk 0:02:17]} 19. Rhd1 {[%clk 0:01:58]}  Kc7 {[%clk 0:02:17]} 20. a5 {[%clk 0:01:19]}  Bc5 {[%clk 0:02:08]} 21. axb6+ {[%clk 0:01:03]}  axb6 {[%clk 0:02:07]} 22. Bxc5 {[%clk 0:00:53]}  Nxc5 {[%clk 0:02:06]} 23. Ng5 {[%clk 0:00:50]}  Rxd2+ {[%clk 0:02:01]} 24. Rxd2 {[%clk 0:00:51]}  h6 {[%clk 0:01:52]} 25. Nxf7 {[%clk 0:00:49]}  Rf8 {[%clk 0:01:52]} 26. Nxh6 {[%clk 0:00:41]}  Rxf4 {[%clk 0:01:52]} 27. Ng4 {[%clk 0:00:41]}  Ne7 {[%clk 0:01:42]} 28. Nf6 {[%clk 0:00:39]}  Nf5 {[%clk 0:01:35]} 29. b4 {[%clk 0:00:33]}  Na6 {[%clk 0:01:23]} 30. Kc3 {[%clk 0:00:28]}  Nb8 {[%clk 0:01:17]} 31. Ne8+ {[%clk 0:00:19]}  Kc8 {[%clk 0:01:12]} 32. Nd6+ {[%clk 0:00:18]}  Nxd6 {[%clk 0:01:10]} 33. Rxd6 {[%clk 0:00:19]}  Rh4 {[%clk 0:01:04]} 34. Rxe6 {[%clk 0:00:19]}  Rxh2 {[%clk 0:01:04]} 35. Bd3 {[%clk 0:00:20]}  Rf2 {[%clk 0:01:01]} 36. Be4 {[%clk 0:00:20]}  g5 {[%clk 0:00:59]} 37. Rg6 {[%clk 0:00:16]}  Nd7 {[%clk 0:00:56]} 38. Rxc6+ {[%clk 0:00:13]}  Kd8 {[%clk 0:00:54]} 39. Rg6 {[%clk 0:00:07]}  Nxe5 {[%clk 0:00:53]} 40. Rxg5 {[%clk 0:00:08]}  Nd7 {[%clk 0:00:47]} 41. Rg8+ {[%clk 0:00:06]}  Ke7 {[%clk 0:00:46]} 42. Rg7+ {[%clk 0:00:07]}  Kd6 {[%clk 0:00:46]} 43. Rg6+ {[%clk 0:00:06]}  Kc7 {[%clk 0:00:45]} 44. Rc6+ {[%clk 0:00:07]}  Kd8 {[%clk 0:00:45]} 45. c5 {[%clk 0:00:06]}  bxc5 {[%clk 0:00:45]} 46. bxc5 {[%clk 0:00:07]}  Ne5 {[%clk 0:00:44]} 47. Rd6+ {[%clk 0:00:07]}  Kc7 {[%clk 0:00:44]} 48. Rf6 {[%clk 0:00:06]}  Nd7 {[%clk 0:00:42]} 49. Rf7 {[%clk 0:00:05]}  Kd8 {[%clk 0:00:42]} 50. c6 {[%clk 0:00:06]}  Nb6 {[%clk 0:00:41]} 51. c7+ {[%clk 0:00:05]}  Ke8 {[%clk 0:00:41]} 52. Rf6 {[%clk 0:00:04]}  Nc8 {[%clk 0:00:40]} 53. Rh6 {[%clk 0:00:02]}  Rf1 {[%clk 0:00:38]} 54. Kd2 {[%clk 0:00:02]}  Ra1 {[%clk 0:00:36]} 55. Rh8+ {[%clk 0:00:02]}  Kd7 {[%clk 0:00:35]} 56. Bf5+ {[%clk 0:00:03]}  Kxc7 {[%clk 0:00:35]} 57. Rxc8+ {[%clk 0:00:04]}  Kd6 {[%clk 0:00:35]} 58. Rc2 {[%clk 0:00:05]}  Ra3 {[%clk 0:00:34]} 59. Be4 {[%clk 0:00:06]}  Ke5 {[%clk 0:00:34]} 60. Rc3 {[%clk 0:00:05]}  Ra2+ {[%clk 0:00:33]} 61. Ke3 {[%clk 0:00:06]}  Ra5 {[%clk 0:00:33]} 62. Rd3 {[%clk 0:00:06]}  Rb5 {[%clk 0:00:32]} 63. f4+ {[%clk 0:00:07]}  Kf6 {[%clk 0:00:32]} 64. Rd6+ {[%clk 0:00:07]}  Ke7 {[%clk 0:00:32]} 65. Rd5 {[%clk 0:00:07]}  Rb4 {[%clk 0:00:32]} 66. Rd4 {[%clk 0:00:06]}  Rb3+ {[%clk 0:00:31]} 67. Bd3 {[%clk 0:00:07]}  Rb2 {[%clk 0:00:30]} 68. Ke4 {[%clk 0:00:07]}  Ra2 {[%clk 0:00:28]} 69. Ke5 {[%clk 0:00:07]}  Ra5+ {[%clk 0:00:27]} 70. Rd5 {[%clk 0:00:08]}  Ra3 {[%clk 0:00:27]} 71. f5 {[%clk 0:00:08]}  Ra7 {[%clk 0:00:26]} 72. f6+ {[%clk 0:00:08]}  Kf7 {[%clk 0:00:26]} 73. Kf5 {[%clk 0:00:07]}  Rc7 {[%clk 0:00:26]} 74. Re5 {[%clk 0:00:06]}  Rd7 {[%clk 0:00:25]} 75. Bc4+ {[%clk 0:00:06]}  Kf8 {[%clk 0:00:25]} 76. f7 {[%clk 0:00:06]}  Rd8 {[%clk 0:00:23]} 77. Re4 {[%clk 0:00:03]}  Rc8 {[%clk 0:00:21]} 78. Rg4 {[%clk 0:00:00]}  Ke7 {[%clk 0:00:21]} 0-1


[Site "https://www.chess.com"]

[Event "Titled Tuesday Blitz June 27 Late 2023"]
[White "reevecanada"]
[Black "Nunez V, Gustavo Eduardo"]
[BlackFideId "4403690"]
[WhiteElo "2623"]
[BlackElo "2418"]
[Result "0-1"]
[Round "6"]
[TimeControl "180+2"]
[Date "2023.06.27"]
[WhiteClock "0:00:21"]
[BlackClock "0:00:26"]
[Board "93"]

1. e4 {[%clk 0:03:00]}  c5 {[%clk 0:03:00]} 2. Nf3 {[%clk 0:02:57]}  Nc6 {[%clk 0:02:59]} 3. Bb5 {[%clk 0:02:56]}  g6 {[%clk 0:02:53]} 4. h4 {[%clk 0:02:53]}  h6 {[%clk 0:02:52]} 5. d3 {[%clk 0:02:48]}  Bg7 {[%clk 0:02:44]} 6. c3 {[%clk 0:02:47]}  e6 {[%clk 0:02:39]} 7. Na3 {[%clk 0:02:43]}  Nge7 {[%clk 0:02:34]} 8. Ba4 {[%clk 0:02:40]}  O-O {[%clk 0:02:33]} 9. h5 {[%clk 0:02:39]}  g5 {[%clk 0:02:30]} 10. Nxg5 {[%clk 0:02:38]}  hxg5 {[%clk 0:02:22]} 11. h6 {[%clk 0:02:37]}  Bf6 {[%clk 0:02:22]} 12. Qf3 {[%clk 0:02:35]}  Ng6 {[%clk 0:02:21]} 13. h7+ {[%clk 0:02:32]}  Kh8 {[%clk 0:02:21]} 14. Be3 {[%clk 0:02:27]}  Nce5 {[%clk 0:02:21]} 15. Qe2 {[%clk 0:02:26]}  d5 {[%clk 0:02:12]} 16. O-O-O {[%clk 0:02:24]}  d4 {[%clk 0:02:12]} 17. Bd2 {[%clk 0:02:23]}  Bd7 {[%clk 0:02:04]} 18. Bc2 {[%clk 0:02:19]}  b5 {[%clk 0:01:59]} 19. f3 {[%clk 0:02:16]}  a5 {[%clk 0:01:56]} 20. g3 {[%clk 0:02:14]}  dxc3 {[%clk 0:01:47]} 21. bxc3 {[%clk 0:02:04]}  b4 {[%clk 0:01:48]} 22. Nb1 {[%clk 0:02:02]}  a4 {[%clk 0:01:47]} 23. f4 {[%clk 0:02:00]}  b3 {[%clk 0:01:40]} 24. axb3 {[%clk 0:01:50]}  axb3 {[%clk 0:01:41]} 25. Bxb3 {[%clk 0:01:50]}  Nc6 {[%clk 0:01:18]} 26. f5 {[%clk 0:01:42]}  exf5 {[%clk 0:01:16]} 27. exf5 {[%clk 0:01:42]}  Bxf5 {[%clk 0:01:17]} 28. Be3 {[%clk 0:01:41]}  Qb6 {[%clk 0:01:15]} 29. Bc2 {[%clk 0:01:38]}  Ra2 {[%clk 0:01:14]} 30. Kd2 {[%clk 0:01:35]}  Qb3 {[%clk 0:01:03]} 31. Rc1 {[%clk 0:01:32]}  Nce5 {[%clk 0:00:57]} 32. Qf1 {[%clk 0:01:23]}  Qe6 {[%clk 0:00:46]} 33. Bxc5 {[%clk 0:01:21]}  Rd8 {[%clk 0:00:45]} 34. Bd4 {[%clk 0:01:20]}  Bxd3 {[%clk 0:00:38]} 35. Qf2 {[%clk 0:01:10]}  Bxc2 {[%clk 0:00:37]} 36. Rxc2 {[%clk 0:01:11]}  Nc4+ {[%clk 0:00:37]} 37. Kc1 {[%clk 0:01:10]}  Rxc2+ {[%clk 0:00:36]} 38. Kxc2 {[%clk 0:01:09]}  Bxd4 {[%clk 0:00:37]} 39. cxd4 {[%clk 0:01:05]}  Ne3+ {[%clk 0:00:37]} 40. Kd3 {[%clk 0:01:03]}  Ng4 {[%clk 0:00:35]} 41. Qb2 {[%clk 0:01:01]}  Qf5+ {[%clk 0:00:34]} 42. Kd2 {[%clk 0:00:58]}  Qf2+ {[%clk 0:00:33]} 43. Kc1 {[%clk 0:00:58]}  Qxb2+ {[%clk 0:00:32]} 44. Kxb2 {[%clk 0:00:59]}  Rxd4 {[%clk 0:00:33]} 45. Kc3 {[%clk 0:00:57]}  Re4 {[%clk 0:00:32]} 46. Nd2 {[%clk 0:00:53]}  Re3+ {[%clk 0:00:33]} 47. Kc4 {[%clk 0:00:53]}  Rxg3 {[%clk 0:00:34]} 48. Ne4 {[%clk 0:00:53]}  N4e5+ {[%clk 0:00:28]} 49. Kc5 {[%clk 0:00:49]}  Rg4 {[%clk 0:00:28]} 50. Nf6 {[%clk 0:00:48]}  Rf4 {[%clk 0:00:28]} 51. Nd5 {[%clk 0:00:44]}  Rh4 {[%clk 0:00:28]} 52. Rg1 {[%clk 0:00:42]}  g4 {[%clk 0:00:26]} 53. Nf6 {[%clk 0:00:43]}  Kg7 {[%clk 0:00:24]} 54. Ne4 {[%clk 0:00:29]}  Rxh7 {[%clk 0:00:23]} 55. Kd6 {[%clk 0:00:27]}  Rh5 {[%clk 0:00:23]} 56. Ng3 {[%clk 0:00:26]}  Rh3 {[%clk 0:00:22]} 57. Nf5+ {[%clk 0:00:25]}  Kf6 {[%clk 0:00:23]} 58. Nd4 {[%clk 0:00:19]}  Rd3 {[%clk 0:00:23]} 59. Kc5 {[%clk 0:00:18]}  Rxd4 {[%clk 0:00:23]} 60. Rf1+ {[%clk 0:00:18]}  Rf4 {[%clk 0:00:23]} 61. Re1 {[%clk 0:00:15]}  Nd3+ {[%clk 0:00:23]} 62. Kd5 {[%clk 0:00:15]}  Nxe1 {[%clk 0:00:24]} 63. Kc5 {[%clk 0:00:16]}  Re4 {[%clk 0:00:24]} 64. Kd5 {[%clk 0:00:17]}  Kf5 {[%clk 0:00:24]} 65. Kc5 {[%clk 0:00:18]}  g3 {[%clk 0:00:25]} 66. Kd5 {[%clk 0:00:19]}  Nf3 {[%clk 0:00:25]} 67. Kc5 {[%clk 0:00:19]}  g2 {[%clk 0:00:26]} 68. Kd5 {[%clk 0:00:20]}  g1=Q {[%clk 0:00:26]} 69. Kd6 {[%clk 0:00:18]}  Qd1+ {[%clk 0:00:25]} 70. Kc7 {[%clk 0:00:19]}  Rc4+ {[%clk 0:00:25]} 71. Kb7 {[%clk 0:00:20]}  Qb3+ {[%clk 0:00:26]} 72. Ka7 {[%clk 0:00:21]}  Ra4# {[%clk 0:00:26]} 0-1


[Site "https://www.chess.com"]